bitfinex/quotes_SOLUSD_20250708
["timestamp","ask_amount","ask_price","bid_price","bid_amount"]
[1751933565451,1e-08,149.23,149.22,11.38451747]
[1751933568444,0.1,149.28,149.22,36.24060769]
[1751933568738,0.1,149.28,149.27,4.54084136]
[1751933568946,0.1,149.28,149.27,45.82084136]
[1751933570248,0.1,149.34,149.32,0.14216157]
[1751933570547,0.1,149.34,149.33,38.74084136]
[1751933570755,0.1,149.34,149.33,34.2]
[1751933570932,0.1,149.34,149.33,34.38]
[1751933571830,0.1,149.34,149.33,38.92084136]
[1751933572230,0.1,149.34,149.33,45.6174194]
[1751933573251,7.49390546,149.39,149.33,81.00851338]
[1751933573456,12.52224695,149.45,149.33,81.00851338]
[1751933573457,10.88364136,149.47,149.38,27.73133158]
[1751933573747,1.6076,149.49,149.45,4.54084136]
[1751933573938,4.54084136,149.5,149.46,34.5]
[1751933574131,4.54084136,149.49,149.46,34.5]
[1751933574338,4.54084136,149.48,149.46,41.19067971]
[1751933574533,4.54084136,149.47,149.46,34.5]
[1751933575841,6.3428,149.44,149.37,13.79478476]
[1751933576037,6.3428,149.44,149.38,34.5]
[1751933576345,4.54084136,149.4,149.38,34.5]
[1751933576549,4.54084136,149.4,149.39,34.52]
[1751933578440,6.69282398,149.42,149.37,7.1]
[1751933578638,25.48405918,149.43,149.39,34.52]
[1751933578847,4.54084136,149.4,149.39,34.52]
[1751933580755,147.7,149.42,149.39,34.52]
[1751933580960,4.54084136,149.4,149.39,34.52]
[1751933582060,152.24084136,149.42,149.39,41.21380043]
[1751933582240,152.24084136,149.42,149.39,41.21383768]
[1751933583453,147.7,149.42,149.39,41.21383768]
[1751933583753,152.24084136,149.42,149.39,41.21383768]
[1751933585250,152.24084136,149.42,149.39,34.52]
[1751933585251,4.54084136,149.41,149.39,34.52]
[1751933585435,4.54084136,149.4,149.39,34.52]
[1751933586063,4.54084136,149.41,149.39,34.52]
[1751933586759,147.7,149.42,149.39,41.21383548]
[1751933586945,4.54084136,149.41,149.39,41.21383548]
[1751933588457,4.54084136,149.41,149.39,34.52]
[1751933588659,4.54084136,149.4,149.37,13.79438095]
[1751933588968,4.54084136,149.4,149.38,34.46]
[1751933589840,153.9233,149.48,149.39,4.54084136]
[1751933590046,153.9233,149.48,149.38,34.46]
[1751933590047,147.7,149.47,149.42,4.54084136]
[1751933590245,147.7,149.47,149.43,34.54]
[1751933590246,4.54084136,149.46,149.43,34.54]
[1751933590666,147.7,149.47,149.43,34.54]
[1751933590957,4.54084136,149.46,149.43,34.54]
[1751933591165,147.7,149.47,149.43,34.54]
[1751933591338,152.24084136,149.47,149.43,45.77282763]
[1751933592079,4.54084136,149.46,149.43,34.54]
[1751933592759,4.54084136,149.46,149.43,41.23205401]
[1751933592969,4.54084136,149.46,149.43,41.23209523]
[1751933594091,147.7,149.47,149.43,41.23209523]
[1751933594287,4.54084136,149.46,149.43,41.23209523]
[1751933595776,4.54084136,149.46,149.43,34.54]
[1751933596874,4.44084136,149.46,149.43,41.23205727]
[1751933597467,4.44084136,149.46,149.43,34.54]
[1751933598270,4.44084136,149.46,149.43,41.23208726]
[1751933598658,4.44084136,149.46,149.43,34.54]
[1751933602480,4.54084136,149.44,149.43,34.54]
[1751933603592,4.54084136,149.44,149.39,4.54084136]
[1751933603763,4.54084136,149.42,149.38,11.23498412]
[1751933603964,4.54084136,149.42,149.39,41.11381874]
[1751933604882,4.54084136,149.41,149.4,34.42]
[1751933605388,11.232317,149.45,149.37,8.21553244]
[1751933605583,4.54084136,149.41,149.37,8.21553244]
[1751933605771,4.54084136,149.41,149.38,34.42]
[1751933606272,4.54084136,149.41,149.39,6.69388847]
[1751933606785,4.54084136,149.41,149.4,34.4]
[1751933610773,4.54084136,149.41,149.35,16.73811893]
[1751933610972,4.54084136,149.39,149.36,41.07523299]
[1751933611365,4.54084136,149.39,149.36,6.69523299]
[1751933611669,4.54084136,149.39,149.37,34.4]
[1751933612163,4.54084136,149.39,149.38,34.4]
[1751933612686,4.54084136,149.39,149.35,13.87553463]
[1751933612887,4.54084136,149.38,149.36,34.4]
[1751933613789,152.24084136,149.41,149.36,38.94084136]
[1751933613989,152.24084136,149.41,149.37,4.54084136]
[1751933614194,152.24084136,149.41,149.36,38.94084136]
[1751933614487,152.24084136,149.41,149.37,6.69478476]
[1751933616295,4.54084136,149.4,149.37,6.69478476]
[1751933617094,152.24084136,149.41,149.38,34.38]
[1751933617996,152.24084136,149.41,149.38,41.07390331]
[1751933622581,6.2625,149.45,149.39,4.54084136]
[1751933622781,18.31245664,149.45,149.38,57.80974478]
[1751933622976,152.24084136,149.46,149.41,11.23383379]
[1751933623174,152.24084136,149.46,149.42,34.36]
[1751933623497,147.7,149.46,149.42,34.36]
[1751933623794,4.54084136,149.45,149.42,34.36]
[1751933625199,4.54084136,149.45,149.42,41.05240808]
[1751933626095,147.7,149.46,149.42,41.05240808]
[1751933626294,4.54084136,149.45,149.42,41.05240808]
[1751933635209,4.54084136,149.45,149.42,41.0525339]
[1751933639504,147.73,149.46,149.42,41.0525339]
[1751933639809,4.54084136,149.45,149.42,41.0525339]
[1751933640485,147.73,149.46,149.42,41.0525339]
[1751933640687,4.54084136,149.45,149.42,41.0525339]
[1751933641408,147.73,149.46,149.43,4.54084136]
[1751933641628,147.73,149.46,149.44,38.82084136]
[1751933642303,0.03,149.46,149.45,4.54084136]
[1751933643404,0.03,149.46,149.45,11.23204243]
[1751933655527,0.03,149.46,149.45,6.69120107]
[1751933655827,0.03,149.46,149.45,11.23204243]
[1751933656031,0.1,149.55,149.49,26.0]
[1751933656231,0.1,149.55,149.5,41.34]
[1751933656439,0.1,149.55,149.54,4.54084136]
[1751933656751,0.1,149.55,149.54,34.3]
[1751933657334,4.64084136,149.55,149.54,34.3]
[1751933660238,0.1,149.55,149.54,34.3]
[1751933660535,4.64084136,149.55,149.54,34.3]
[1751933661040,0.1,149.55,149.54,34.3]
[1751933661343,4.64084136,149.55,149.54,34.3]
[1751933663842,0.1,149.55,149.54,34.3]
[1751933664026,4.64084136,149.55,149.54,34.3]
[1751933666534,4.64084136,149.55,149.52,34.26]
[1751933666940,4.64084136,149.55,149.5,13.80861452]
[1751933666941,4.54084136,149.53,149.5,7.12]
[1751933667143,147.7,149.54,149.52,34.26]
[1751933667436,147.7,149.54,149.5,7.12]
[1751933667827,147.7,149.54,149.5,41.38]
[1751933668018,154.38735995,149.54,149.5,41.38]
[1751933668439,4.54084136,149.51,149.5,41.38]
[1751933669537,4.54084136,149.51,149.5,7.12]
[1751933669720,154.38735995,149.54,149.5,41.38]
[1751933669922,4.54084136,149.51,149.5,41.38]
[1751933676751,154.38726132,149.54,149.5,41.38]
[1751933677046,4.54084136,149.51,149.5,41.38]
[1751933677636,154.38726132,149.54,149.5,41.38]
[1751933677949,4.54084136,149.51,149.5,41.38]
[1751933678630,147.7,149.54,149.5,41.38]
[1751933678944,4.54084136,149.53,149.5,41.38]
[1751933679750,4.54084136,149.52,149.5,41.38]
[1751933680244,4.54084136,149.52,149.5,48.06889676]
[1751933681333,4.54084136,149.52,149.5,41.38]
[1751933681647,4.54084136,149.51,149.5,7.12]
[1751933681851,4.54084136,149.51,149.5,41.34]
[1751933683250,6.68767429,149.53,149.5,41.34]
[1751933683453,4.54084136,149.51,149.5,41.34]
[1751933684651,4.54084136,149.52,149.5,41.34]
[1751933686158,4.54084136,149.51,149.5,41.34]
[1751933688157,4.54084136,149.51,149.5,41.32]
[1751933688775,4.54084136,149.51,149.5,7.12]
[1751933689275,4.54084136,149.51,149.5,41.3]
[1751933694541,4.54084136,149.51,149.5,7.12]
[1751933694769,4.54084136,149.51,149.5,41.28]
[1751933696966,2.89031154,149.51,149.5,34.16]
[1751933697360,2.89031154,149.51,149.47,6.69006828]
[1751933697551,2.89031154,149.5,149.48,34.14]
[1751933700572,2.89031154,149.49,149.48,34.14]
[1751933700972,2.89031154,149.49,149.46,7.18]
[1751933701174,155.21564079,149.51,149.46,7.18]
[1751933701175,2.89031154,149.47,149.46,7.18]
[1751933701356,28.89031154,149.47,149.46,0.06]
[1751933701560,36.40564878,149.47,149.46,0.06]
[1751933701873,61.88776495,149.47,149.46,0.06]
[1751933702374,96.35977547,149.47,149.41,7.18]
[1751933702576,2.89031154,149.42,149.41,0.06]
[1751933704969,4.52270268,149.42,149.41,0.06]
[1751933705552,18.79181043,149.46,149.41,0.06]
[1751933705752,4.52270268,149.43,149.41,0.06]
[1751933706154,4.52270268,149.42,149.41,0.06]
[1751933708361,30.00705761,149.42,149.41,0.06]
[1751933711960,37.78735761,149.42,149.41,0.06]
[1751933712162,26.0,149.39,149.35,7.12]
[1751933712664,4.52270268,149.36,149.35,7.12]
[1751933713682,4.52270268,149.36,149.35,13.81568128]
[1751933715599,4.52270268,149.37,149.35,13.81568128]
[1751933716094,26.0,149.39,149.35,13.81568128]
[1751933716404,4.52270268,149.4,149.36,4.52270268]
[1751933716576,4.52270268,149.39,149.35,35.07758717]
[1751933716974,4.52270268,149.4,149.35,35.07758717]
[1751933717179,4.52270268,149.38,149.35,13.81568128]
[1751933718191,4.52270268,149.38,149.35,47.95568128]
[1751933721780,4.52270268,149.39,149.35,52.47838396]
[1751933721981,4.52270268,149.39,149.35,47.95568128]
[1751933722181,4.52270268,149.39,149.35,52.47838396]
[1751933727794,4.52270268,149.37,149.35,7.12]
[1751933727999,18.79181043,149.39,149.36,34.12]
[1751933728208,4.52270268,149.37,149.36,34.12]
[1751933729100,4.52270268,149.38,149.36,34.12]
[1751933730208,147.73,149.41,149.36,38.64270268]
[1751933730407,147.73,149.41,149.38,4.52270268]
[1751933730593,147.73,149.41,149.39,34.12]
[1751933731087,147.73,149.41,149.39,38.64270268]
[1751933731284,147.73,149.41,149.4,6.69344042]
[1751933731892,147.73,149.41,149.4,11.2161431]
[1751933733302,0.03,149.41,149.4,11.2161431]
[1751933738710,147.7,149.45,149.41,1.5839]
[1751933738912,0.03,149.47,149.44,4.52270268]
[1751933739107,0.03,149.47,149.45,38.64270268]
[1751933739412,0.03,149.47,149.45,34.12]
[1751933740825,0.03,149.47,149.46,6.69075337]
[1751933742916,0.03,149.47,149.45,40.81107395]
[1751933748603,0.03,149.47,149.46,4.52270268]
[1751933749607,0.03,149.47,149.46,11.21345605]
[1751933752218,0.03,149.47,149.46,6.69075337]
[1751933752527,0.03,149.47,149.46,11.21345605]
[1751933761228,0.03,149.53,149.46,29.46893949]
[1751933761426,0.03,149.53,149.51,4.52270268]
[1751933761743,152.22270268,149.52,149.51,34.12]
[1751933761910,152.22270268,149.52,149.46,11.21345605]
[1751933762228,152.22270268,149.52,149.47,38.64270268]
[1751933762229,4.52270268,149.51,149.47,38.64270268]
[1751933762413,152.22270268,149.52,149.47,38.64270268]
[1751933762816,147.7,149.52,149.48,4.52270268]
[1751933763131,147.7,149.52,149.51,4.52270268]
[1751933763321,147.7,149.52,149.51,45.33121849]
[1751933764417,147.7,149.52,149.51,40.80851581]
[1751933766137,147.7,149.52,149.51,34.12]
[1751933766323,147.7,149.52,149.51,40.80851581]
[1751933770641,147.7,149.52,149.51,34.12]
[1751933771527,152.22270268,149.52,149.49,6.6891486]
[1751933771728,147.7,149.52,149.5,34.08]
[1751933771933,152.22270268,149.52,149.49,6.6891486]
[1751933772143,152.22270268,149.52,149.51,34.08]
[1751933773923,152.22270268,149.52,149.5,34.08]
[1751933776925,152.22270268,149.52,149.49,34.06]
[1751933777334,152.22270268,149.52,149.48,34.06]
[1751933777335,4.52270268,149.5,149.48,34.06]
[1751933777822,4.52270268,149.49,149.45,11.21390375]
[1751933778015,4.52270268,149.49,149.46,34.08]
[1751933778221,4.52270268,149.49,149.45,11.21390375]
[1751933778518,4.52270268,149.49,149.46,34.08]
[1751933779155,4.52270268,149.49,149.45,11.21390375]
[1751933779442,4.52270268,149.48,149.45,6.69120107]
[1751933779640,4.52270268,149.48,149.46,34.06]
[1751933780835,4.52270268,149.49,149.46,34.06]
[1751933781144,4.52270268,149.48,149.46,34.06]
[1751933781736,4.52270268,149.48,149.44,11.21416124]
[1751933781939,4.52270268,149.48,149.45,34.06]
[1751933782545,4.52270268,149.48,149.44,11.21416124]
[1751933782745,4.52270268,149.48,149.45,34.06]
[1751933783046,4.52270268,149.47,149.45,34.06]
[1751933783458,4.52270268,149.47,149.44,6.69145856]
[1751933783754,4.52270268,149.46,149.44,34.06]
[1751933783932,4.52270268,149.46,149.42,11.58270268]
[1751933784129,4.52270268,149.45,149.42,7.06]
[1751933784389,4.52270268,149.45,149.43,34.06]
[1751933784845,4.52270268,149.46,149.43,34.06]
[1751933785228,4.52270268,149.46,149.43,40.7519369]
[1751933786146,4.52270268,149.46,149.43,34.06]
[1751933786740,4.52270268,149.46,149.42,11.58270268]
[1751933786928,4.52270268,149.46,149.44,34.08]
[1751933795356,4.52270268,149.45,149.42,41.14]
[1751933795557,6.227,149.46,149.42,41.14]
[1751933795558,4.52270268,149.43,149.42,41.14]
[1751933795948,4.52270268,149.43,149.42,34.08]
[1751933796136,4.52270268,149.43,149.4,6.75342538]
[1751933796338,12.91777732,149.46,149.41,34.08]
[1751933796540,4.52270268,149.44,149.41,34.08]
[1751933796946,4.52270268,149.44,149.4,11.27612806]
[1751933797158,4.52270268,149.44,149.41,34.08]
[1751933800447,4.52270268,149.44,149.4,11.27609341]
[1751933800647,4.52270268,149.44,149.41,34.08]
[1751933801976,4.52270268,149.44,149.41,40.7729878]
[1751933803669,4.52270268,149.44,149.41,34.08]
[1751933804665,4.52270268,149.44,149.4,11.27596418]
[1751933804871,4.52270268,149.44,149.41,34.08]
[1751933806888,2.89317248,149.44,149.41,34.08]
[1751933810071,2.89317248,149.42,149.4,0.06]
[1751933810567,2.89317248,149.41,149.4,0.06]
[1751933810951,4.52200159,149.41,149.4,0.06]
[1751933812482,11.21499402,149.41,149.4,0.06]
[1751933812653,17.67829402,149.41,149.4,0.06]
[1751933812852,36.47010445,149.41,149.4,0.06]
[1751933813967,29.77711202,149.41,149.4,0.06]
[1751933814277,26.0,149.41,149.4,0.06]
[1751933814677,30.52200159,149.42,149.4,0.06]
[1751933816468,25.25511043,149.45,149.4,0.06]
[1751933816678,4.52200159,149.44,149.4,4.58200159]
[1751933816881,32.4633,149.45,149.4,34.14]
[1751933816882,6.4633,149.45,149.4,34.14]
[1751933817081,7.49322954,149.46,149.42,4.52200159]
[1751933817379,4.52200159,149.47,149.42,4.52200159]
[1751933817567,12.01617453,149.47,149.42,4.52200159]
[1751933817765,12.01617453,149.47,149.4,34.14]
[1751933818090,12.01617453,149.47,149.42,4.52200159]
[1751933818271,4.52200159,149.46,149.43,6.69209663]
[1751933818981,7.49417294,149.47,149.43,6.69209663]
[1751933819164,4.52200159,149.46,149.43,6.69209663]
[1751933819858,12.01617453,149.47,149.43,11.21409822]
[1751933820059,44.64964886,149.48,149.43,11.21409822]
[1751933820285,4.52200159,149.47,149.43,11.21409822]
[1751933820971,4.52200159,149.46,149.43,6.69209663]
[1751933823178,147.7,149.44,149.43,6.69209663]
[1751933824062,147.7,149.44,149.43,11.21409822]
[1751933826095,147.7,149.44,149.43,6.69209663]
[1751933840413,147.7,149.44,149.43,11.21409822]
[1751933840916,26.0,149.48,149.43,11.21409822]
[1751933841103,158.60670159,149.49,149.45,4.52200159]
[1751933842411,158.60670159,149.49,149.44,34.06]
[1751933842614,4.52200159,149.48,149.44,45.27324664]
[1751933842990,4.52200159,149.45,149.41,0.06]
[1751933843226,4.52200159,149.42,149.41,0.06]
[1751933843793,49.31381202,149.42,149.41,0.06]
[1751933844529,56.00635652,149.42,149.41,0.06]
[1751933848019,44.79181043,149.42,149.41,0.06]
[1751933848328,49.31381202,149.42,149.41,0.06]
[1751933848909,56.00635652,149.42,149.41,0.06]
[1751933849812,63.51342973,149.42,149.41,0.06]
[1751933859733,58.99142814,149.42,149.41,0.06]
[1751933860051,52.29888364,149.42,149.41,0.06]
[1751933860338,49.31381202,149.42,149.41,0.06]
[1751933862927,63.50165483,149.42,149.41,0.06]
[1751933863126,56.80911033,149.42,149.41,0.06]
[1751933868652,63.50165483,149.42,149.41,0.06]
[1751933875230,52.28710874,149.42,149.41,0.06]
[1751933875426,56.80911033,149.42,149.41,0.06]
[1751933875846,52.14494717,149.42,149.41,0.06]
[1751933876032,44.64964886,149.42,149.41,0.06]
[1751933876230,49.31381202,149.42,149.41,0.06]
[1751933877625,26.0,149.42,149.41,0.06]
[1751933882952,30.52200159,149.42,149.41,0.06]
[1751933883651,56.00635652,149.42,149.41,0.06]
[1751933883948,63.5114079,149.42,149.41,0.06]
[1751933890858,63.53309271,149.42,149.41,0.06]
[1751933891645,0.14216157,149.36,149.32,1.8049]
[1751933891847,49.31381202,149.33,149.32,0.2]
[1751933892057,56.84054821,149.33,149.32,0.2]
[1751933892955,7.52673619,149.33,149.32,0.2]
[1751933893569,7.52673619,149.34,149.32,0.2]
[1751933893774,7.52673619,149.33,149.32,0.2]
[1751933894276,7.52673619,149.34,149.32,6.89702652]
[1751933894566,4.52200159,149.37,149.33,4.52200159]
[1751933894761,7.51003302,149.36,149.33,4.52200159]
[1751933894965,7.51003302,149.36,149.34,4.52200159]
[1751933895149,9.41212555,149.39,149.35,4.52200159]
[1751933895150,4.52200159,149.39,149.35,4.52200159]
[1751933895354,147.7,149.36,149.35,4.52200159]
[1751933896979,147.7,149.36,149.34,6.69571432]
[1751933896980,147.7,149.36,149.34,11.21771591]
[1751933897282,147.7,149.36,149.35,4.52200159]
[1751933897575,147.7,149.4,149.35,4.52200159]
[1751933897751,7.50607287,149.39,149.36,4.52200159]
[1751933898651,7.50607287,149.39,149.36,11.21710081]
[1751933899272,7.50607287,149.39,149.36,6.69509922]
[1751933899472,7.50607287,149.39,149.36,11.21710081]
[1751933899953,152.22200159,149.4,149.36,11.21710081]
[1751933900153,152.22200159,149.4,149.34,16.74032409]
[1751933900472,4.52200159,149.39,149.35,4.52200159]
[1751933902472,4.52200159,149.39,149.34,4.52200159]
[1751933904274,4.52200159,149.39,149.35,6.69568128]
[1751933905779,4.52200159,149.39,149.35,11.21768287]
[1751933912471,4.52200159,149.39,149.35,6.69568128]
[1751933912669,4.52200159,149.39,149.35,11.21768287]
[1751933918361,4.52200159,149.39,149.35,6.69568128]
[1751933918560,4.52200159,149.39,149.35,11.21768287]
[1751933920086,4.52200159,149.37,149.34,0.06]
[1751933921579,4.52200159,149.35,149.34,0.06]
[1751933928183,147.7,149.36,149.34,0.06]
[1751933928383,147.7,149.36,149.35,4.52200159]
[1751933928691,0.03,149.4,149.35,38.58200159]
[1751933928865,0.03,149.4,149.37,4.52200159]
[1751933929366,4.55200159,149.4,149.37,6.69443129]
[1751933931290,4.55200159,149.4,149.36,11.21697369]
[1751933935379,4.52200159,149.39,149.36,6.6949721]
[1751933937486,0.03,149.4,149.35,40.75555578]
[1751933937487,4.52200159,149.38,149.35,40.75555578]
[1751933937695,4.52200159,149.37,149.35,34.06]
[1751933937873,4.52200159,149.36,149.34,0.06]
[1751933938080,7.50946094,149.38,149.34,0.06]
[1751933938281,4.52200159,149.35,149.34,0.06]
[1751933950010,37.52229188,149.35,149.34,0.06]
[1751933953997,44.64964886,149.33,149.32,0.2]
[1751933954304,56.8266106,149.33,149.32,0.2]
[1751933954995,63.2616106,149.33,149.32,0.2]
[1751933955185,74.48019023,149.33,149.32,0.2]
[1751933961225,69.95818864,149.33,149.32,0.2]
[1751933963815,74.48019023,149.33,149.32,0.2]
[1751933964108,18.64964886,149.3,149.29,0.2]
[1751933964311,23.31381202,149.3,149.29,0.2]
[1751933965322,30.01173566,149.3,149.29,0.2]
[1751933965699,25.48973407,149.3,149.29,0.2]
[1751933966022,30.01173566,149.3,149.29,0.2]
[1751933974839,28.38936372,149.3,149.29,0.2]
[1751933976228,54.38936372,149.3,149.29,0.2]
[1751933976820,56.02108588,149.3,149.29,0.2]
[1751933982241,63.51559121,149.3,149.29,0.2]
[1751933986576,0.14216157,149.29,149.27,0.2]
[1751933986871,44.79181043,149.27,149.26,0.2]
[1751933987104,56.81766757,149.27,149.26,0.2]
[1751933987570,61.34901938,149.27,149.26,0.2]
[1751933987871,68.04828915,149.27,149.26,0.2]
[1751933988180,68.04828915,149.27,149.23,0.2]
[1751933988181,18.79181043,149.26,149.23,0.2]
[1751933988464,35.34901938,149.26,149.23,0.2]
[1751933989264,56.81766757,149.26,149.23,0.2]
[1751933989964,56.675506,149.26,149.23,0.2]
[1751933991064,63.51738618,149.26,149.23,0.2]
[1751933991277,42.04873799,149.26,149.23,0.2]
[1751933991765,173.5,149.24,149.23,0.2]
[1751933991981,42.04963583,149.24,149.23,0.2]
[1751933992473,42.04963583,149.24,149.22,0.2]
[1751933992655,26.0,149.21,149.2,0.2]
[1751933992855,38.02585714,149.21,149.2,0.2]
[1751933994071,44.72782081,149.21,149.2,0.2]
[1751933995170,63.51963124,149.21,149.2,0.2]
[1751933999679,56.81766757,149.21,149.2,0.2]
[1751933999884,49.18100067,149.21,149.2,0.2]
[1751934000071,4.53135181,149.21,149.2,0.2]
[1751934002281,11.23331548,149.21,149.2,0.2]
[1751934002679,4.53135181,149.21,149.2,0.2]
[1751934005372,26.16029604,149.28,149.2,0.2]
[1751934005682,23.18100067,149.23,149.2,1.7869]
[1751934006073,26.0,149.22,149.2,1.7869]
[1751934006586,6.72944862,149.27,149.2,1.7869]
[1751934006804,4.53135181,149.21,149.2,1.7869]
[1751934006973,49.18100067,149.21,149.2,0.2]
[1751934008192,196.88100067,149.21,149.2,0.2]
[1751934010099,203.58296434,149.21,149.2,0.2]
[1751934010592,203.72512591,149.21,149.2,0.2]
[1751934015287,199.1937741,149.21,149.2,0.2]
[1751934015493,203.72512591,149.21,149.2,0.2]
[1751934021598,56.02512591,149.21,149.2,0.2]
[1751934022705,63.5236331,149.21,149.2,0.2]
[1751934028585,56.82166943,149.21,149.2,0.2]
[1751934031013,52.14815605,149.21,149.2,0.2]
[1751934031190,56.67950786,149.21,149.2,0.2]
[1751934031808,52.14815605,149.21,149.2,0.2]
[1751934032016,56.67950786,149.21,149.2,0.2]
[1751934034015,49.18100067,149.21,149.2,0.2]
[1751934034196,56.71353894,149.21,149.2,0.2]
[1751934034717,56.7145279,149.21,149.2,0.2]
[1751934036523,7.53352723,149.21,149.2,11.43376467]
[1751934036721,0.03,149.22,149.2,11.43376467]
[1751934036902,0.03,149.22,149.21,6.09035181]
[1751934037100,0.03,149.22,149.21,1.559]
[1751934037295,0.03,149.22,149.21,6.09035181]
[1751934038612,0.03,149.22,149.21,12.79231548]
[1751934040995,0.03,149.22,149.21,1.559]
[1751934043010,0.03,149.22,149.21,12.79231548]
[1751934046929,0.03,149.22,149.21,8.26096367]
[1751934047925,0.03,149.22,149.2,0.2]
[1751934048227,0.03,149.22,149.2,34.24]
[1751934048523,4.56135181,149.22,149.2,0.2]
[1751934049326,4.53135181,149.21,149.2,0.2]
[1751934054024,152.23135181,149.21,149.2,0.2]
[1751934054507,170.88100067,149.21,149.2,0.2]
[1751934055426,166.34964886,149.21,149.2,0.2]
[1751934055635,147.7,149.21,149.2,6.90241286]
[1751934056628,0.03,149.22,149.2,11.43376467]
[1751934056829,0.03,149.22,149.21,38.57135181]
[1751934057835,0.03,149.22,149.21,45.27331548]
[1751934066651,0.03,149.22,149.21,40.74196367]
[1751934066845,0.03,149.22,149.21,45.27331548]
[1751934067355,0.03,149.22,149.21,40.74196367]
[1751934069164,0.03,149.22,149.21,34.04]
[1751934076764,4.56135181,149.22,149.21,34.08]
[1751934077063,0.03,149.22,149.21,45.31331548]
[1751934077234,11.73603051,149.27,149.22,26.0]
[1751934077440,11.73603051,149.27,149.26,4.53135181]
[1751934077648,11.73603051,149.27,149.26,38.55135181]
[1751934077842,0.03,149.27,149.26,38.55135181]
[1751934078048,0.03,149.34,149.26,38.55135181]
[1751934078287,0.03,149.34,149.31,4.53135181]
[1751934078563,0.03,149.34,149.32,34.02]
[1751934078856,4.56135181,149.34,149.32,34.02]
[1751934080261,0.03,149.34,149.32,34.02]
[1751934080552,0.03,149.34,149.32,45.24837241]
[1751934080760,0.03,149.34,149.32,34.02]
[1751934082959,0.03,149.34,149.33,4.53135181]
[1751934084768,0.03,149.34,149.33,11.22792985]
[1751934085067,0.03,149.34,149.32,45.2482004]
[1751934086251,0.03,149.34,149.33,4.53135181]
[1751934087464,0.03,149.34,149.32,34.02]
[1751934087654,4.56135181,149.34,149.33,34.02]
[1751934087843,0.03,149.34,149.33,34.02]
[1751934090673,4.56135181,149.34,149.3,11.22914909]
[1751934090873,4.56135181,149.34,149.31,34.0]
[1751934091867,4.56135181,149.34,149.3,11.22914909]
[1751934092064,4.56135181,149.34,149.32,34.0]
[1751934095078,0.03,149.34,149.32,40.69700562]
[1751934095265,0.03,149.34,149.33,4.53135181]
[1751934096489,0.03,149.34,149.32,45.22835743]
[1751934097694,4.56135181,149.34,149.32,34.0]
[1751934100274,0.03,149.34,149.32,34.0]
[1751934100465,4.56135181,149.34,149.32,34.0]
[1751934100665,4.56135181,149.34,149.31,6.69720438]
[1751934100867,4.56135181,149.34,149.32,34.0]
[1751934101276,4.56135181,149.34,149.33,34.0]
[1751934101583,4.56135181,149.34,149.3,11.22918386]
[1751934101773,4.56135181,149.34,149.31,34.0]
[1751934102180,4.53135181,149.33,149.27,8.518]
[1751934102470,4.53135181,149.33,149.29,4.53135181]
[1751934103374,4.53135181,149.33,149.29,11.22956478]
[1751934104377,4.53135181,149.33,149.3,34.0]
[1751934104575,4.53135181,149.32,149.3,34.0]
[1751934106794,0.03,149.34,149.3,40.69779999]
[1751934106967,4.53135181,149.33,149.3,40.69779999]
[1751934110185,4.53135181,149.33,149.3,34.0]
[1751934110368,4.53135181,149.32,149.3,34.0]
[1751934112082,4.53135181,149.32,149.28,6.69863099]
[1751934112289,4.53135181,149.31,149.29,34.0]
[1751934112467,4.53135181,149.31,149.3,34.0]
[1751934114481,4.53135181,149.31,149.27,13.69908859]
[1751934114719,4.53135181,149.3,149.28,34.0]
[1751934114979,4.53135181,149.3,149.29,34.0]
[1751934115688,4.53135181,149.3,149.27,13.69908859]
[1751934115985,25.34667538,149.32,149.27,7.0]
[1751934116191,4.53135181,149.3,149.28,34.0]